Cogmind - Beta 10.2 @@@ ROGUE MODE // 2021.07.05 @ 17:30:48 Player: youngster Result: Destroyed by Y-64 Sentinel with Wave Gun Performance ------------- Evolutions (4) 2000 Regions Visited (15) 3000 Robots Destroyed (110) 550 Value Destroyed (4930) 4930 Prototype IDs (30) 600 Alien Tech Used (0) 0 Bonus (2140) 2140 TOTAL SCORE: 13220 Bonus ------- High Alert Combat Kills 517 Follower Combat Kills 637 Entered Garrisons 200 Used RIF Installer 500 Aligned with FarCom 300 Friendly Fire -14 Cogmind --------- Core Integrity 0/850 Matter 261/300 Energy 98/100 System Corruption 12% Temperature Cool (9) Movement Core (50) Location -6/Lower Caves Parts ------- > --- POWER (1) -------- (None) > --- PROPULSION (3) --- (None) > --- UTILITY (7) ------ Makeshift System Shield > --- WEAPON (4) ------- Makeshift Hammer > --- INVENTORY (4) ---- System Guard Guided EMP Blaster Peak State ------------ > --- POWER ------------ Light Nuclear Core > --- PROPULSION ------- Armored Treads Armored Heavy Treads > --- UTILITY ---------- Cooling System Large Storage Unit Improved Signal Interpreter Advanced Targeting Computer Weapon Cycler Medium Reflective Plating Hacking Suite > --- WEAPON ----------- Gauss Rifle Flak Gun Mini Assault Cannon Rocket Array > --- INVENTORY -------- Light Fission Core Armored Heavy Treads High-capacity Matter Pod Relay Coupler [NC] Flak Gun Advanced EMP Blaster Field Lobotomy Kit Katana [Rating: 63] Favorites ----------- Power Light Nuclear Core Engine Ion Engine Power Core Light Nuclear Core Propulsion Light Treads Treads Light Treads Leg Aluminum Leg Wheel Armored Wheel Hover Unit Gravmag System Flight Unit Cesium-ion Thruster Utility Large Storage Unit Device Cooling System Storage Large Storage Unit Processor Improved Signal Interpreter Hackware Hacking Suite Protection Hardened Medium Armor Plating Weapon Flak Gun Energy Gun Particle Gun Energy Cannon Cooled Plasma Cannon Ballistic Gun Flak Gun Ballistic Cannon Bore Cannon Launcher Grenade Launcher Special Weapon Field Lobotomy Kit Impact Weapon Heavy Hammer Slashing Weapon Katana Build | -11 -10 -9 -9 -9 -8 -8 -7 -7 -7 -7 -7 -6 -6 -6 -6 ------- Run | Scr Mat Mat Min Exi Min Mat Fac Was Fac Gar Fac Fac Was Fac Low Slots Evolved 8 | . . 2 . . . 2 2 . . . . 2 . . . Power . | . . . . . . . . . . . . . . . . Propulsion 1 | . . . . . . . 1 . . . . . . . . Utility 5 | . . . . . . 2 1 . . . . 2 . . . Weapon 2 | . . 2 . . . . . . . . . . . . . Parts Attached 166 | 7 13 11 5 2 7 25 2 5 3 25 17 18 1 7 18 Power 15 | 1 3 1 1 . 1 3 . . 1 1 1 . . . 2 Engine 9 | 1 2 1 1 . . 2 . . . . . . . . 2 Core 6 | . 1 . . . 1 1 . . 1 1 1 . . . . Reactor . | . . . . . . . . . . . . . . . . Propulsion 39 | 2 3 3 . 1 3 6 1 . . 3 6 4 . 1 6 Treads 20 | . . . . . . 4 1 . . 3 6 4 . . 2 Leg 12 | 2 3 3 . 1 3 . . . . . . . . . . Wheel 2 | . . . . . . 2 . . . . . . . . . Hover 1 | . . . . . . . . . . . . . . 1 . Flight 4 | . . . . . . . . . . . . . . . 4 Utility 36 | 1 4 1 . 1 . 6 1 . . 1 6 6 1 2 6 Device 15 | . 3 1 . 1 . 1 . . . . 2 1 1 2 3 Storage 4 | 1 1 . . . . 1 . . . . . 1 . . . Processor 4 | . . . . . . 2 . . . . 1 1 . . . Hackware 2 | . . . . . . . . . . . . 1 . . 1 Protection 11 | . . . . . . 2 1 . . 1 3 2 . . 2 Artifact . | . . . . . . . . . . . . . . . . Weapon 76 | 3 3 6 4 . 3 10 . 5 2 20 4 8 . 4 4 Energy Gun 14 | 1 2 4 1 . 2 3 . . . . . 1 . . . Energy Cannon 1 | . . . . . . . . . . . . . . 1 . Ballistic Gun 28 | 2 1 2 1 . . 4 . . 2 11 1 1 . 2 1 Ballistic Cannon 4 | . . . 1 . . 1 . . . . 1 1 . . . Launcher 16 | . . . 1 . 1 1 . . . 7 1 4 . 1 . Special Weapon 2 | . . . . . . . . 2 . . . . . . . Impact Weapon 2 | . . . . . . 1 . . . . . . . . 1 Slashing Weapon 9 | . . . . . . . . 3 . 2 1 1 . . 2 Piercing Weapon . | . . . . . . . . . . . . . . . . Special Melee Weapon . | . . . . . . . . . . . . . . . . Unidentified Prototypes 8 | . . . . 1 . 1 . . 1 . 2 1 . 2 . Parts Lost 40 | . 5 2 4 . 1 4 . . . 9 1 4 5 . 5 Power 6 | . 1 . 1 . . 1 . . . 1 . . 1 . 1 Propulsion 4 | . 1 . . . . . . . . 3 . . . . . Utility 9 | . 2 . . . . . . . . 1 . 2 2 . 2 Weapon 21 | . 1 2 3 . 1 3 . . . 4 1 2 2 . 2 Highest Loss Streak 8 | . 3 1 2 . 1 1 . . . 8 1 3 3 . 4 Average Slot Usage (%) 89 | . 93 98 96 99 94 99 94 100 100 97 99 92 65 17 17 Engine 4 | . 13 11 10 11 8 7 . . . . . . . . 1 Core 3 | . . . . . 2 1 7 7 7 6 7 6 2 . . Treads 11 | . . . . . . 13 20 23 23 22 22 15 9 . 2 Leg 6 | . 27 22 22 22 22 . . . . . . . . . . Device 9 | . 9 10 11 10 11 8 7 7 7 7 8 14 10 8 2 Storage 8 | . 14 11 11 11 11 9 7 7 7 7 7 7 10 . . Processor 5 | . . . . . . 9 7 7 7 7 7 9 9 . . Protection 6 | . . . . . . 8 12 15 15 14 13 4 . . 2 Energy Gun 6 | . 7 32 10 11 21 6 7 7 7 1 . 2 5 . . Ballistic Gun 13 | . 20 10 16 11 2 13 15 15 15 22 20 9 5 8 . Ballistic Cannon 4 | . . . 4 11 11 10 . . . . 1 6 5 . . Launcher 1 | . . . 10 11 3 2 . . . . . . . . . Slashing Weapon 2 | . . . . . . . . . 7 4 7 5 2 . 2 Naked Turns 170 | . . . . . . . . . . . . . 28 54 88 Heaviest Build 56 | 12 25 33 39 38 39 56 44 49 45 49 48 49 43 19 27 Greatest Support 88 | 20 20 23 23 23 23 44 72 72 72 72 68 80 80 11 88 Greatest Overweight (x) 6 | 1 1 1 1 1 1 3 . . . 1 2 2 3 6 4 Average Overweight (x) . | . . 1 1 1 1 . . . . . . . . 2 . Largest Inventory Capacity 10 | 6 10 10 10 10 10 10 10 10 10 10 10 10 10 4 4 Average Capacity 9 | 5 9 10 10 10 10 10 10 10 10 10 10 10 8 4 4 Most Carried 10 | 3 6 10 10 10 10 10 10 10 10 10 10 10 10 4 4 Average Carried 8 | 1 3 9 9 9 9 9 8 9 9 9 9 9 8 4 3 Final Capacity 10 | 6 10 10 10 10 10 10 10 10 10 10 10 10 4 4 4 Final Carried 10 | 2 6 10 10 10 10 10 9 9 10 10 10 10 4 4 3 Class Distribution -------------------- 25% | Mutant 17% | Scavenger-Tank 15% | Skirmisher 10% | Tank 8% | Gunner 8% | Scavenger-Mutant 5% | Scavenger-Gunner 5% | Scavenger-Skirmisher Dominant Class ---------------- Mutant | -10/Materials Scavenger-Gunner | -9/Materials Scavenger-Mutant | -9/Mines Scavenger-Mutant | -9/Exiles Skirmisher | -8/Mines Skirmisher | -8/Materials Tank | -7/Factory Mutant | -7/Waste Tank | -7/Factory Scavenger-Tank | -7/Garrison Scavenger-Tank | -7/Factory Gunner | -6/Factory Gunner | -6/Waste Mutant | -6/Factory Mutant | -6/Lower Caves Resources | -11 -10 -9 -9 -9 -8 -8 -7 -7 -7 -7 -7 -6 -6 -6 -6 ----------- Run | Scr Mat Mat Min Exi Min Mat Fac Was Fac Gar Fac Fac Was Fac Low Matter Collected 3559 | 192 319 130 163 . 190 995 . 60 54 586 409 276 . . 185 Remotely . | . . . . . . . . . . . . . . . . Salvage Created 4760 | . 412 372 110 . 230 1229 27 . 191 1205 498 367 . . 119 Parts 233 | . 19 19 17 . 13 63 1 . 7 40 32 15 . . 7 Haulers Intercepted 8 | . . 2 . . . 2 . . 1 . 2 1 . . . Recyclers Shooed 9 | . 1 2 . . . 2 1 . . . 2 1 . . . Parts Field Recycled . | . . . . . . . . . . . . . . . . Retrieved Matter . | . . . . . . . . . . . . . . . . Parts Self-Destructed 3 | . . . . . . . . . . . . . . . 3 Prevented 1 | . . . . . . . . . . . . . . . 1 Kills | -11 -10 -9 -9 -9 -8 -8 -7 -7 -7 -7 -7 -6 -6 -6 -6 ------- Run | Scr Mat Mat Min Exi Min Mat Fac Was Fac Gar Fac Fac Was Fac Low Combat Hostiles Destroyed 99 | . 9 6 16 . 7 24 . . 2 21 8 5 . . 1 Melee 4 | . . . . . . 1 . . 2 . . . . . 1 Guns 57 | . 9 6 5 . 3 14 . . . 11 8 1 . . . Cannons 9 | . . . . . . 7 . . . . . 2 . . . AOE 28 | . . . 11 . 4 2 . . . 9 . 2 . . . Classes Destroyed 16 | . 2 2 4 . 2 1 . . . 3 . 1 . . 1 Worker 3 | . . . . . . 1 1 . . . . 1 . . . Tunneler 1 | . . . 1 . . . . . . . . . . . . Hauler 8 | . . 2 . . . 2 . . 1 . 2 1 . . . Recycler 2 | . . . . . 1 1 . . . . . . . . . Watcher 1 | . 1 . . . . . . . . . . . . . . Swarmer 18 | . . . 11 . 4 2 . . . 1 . . . . . Grunt 52 | . 9 4 . . 2 15 . . . 13 6 3 . . . Brawler 1 | . . . . . . . . . . 1 . . . . . Duelist 4 | . . . . . 1 . . . . 2 1 . . . . Sentry 13 | . . 2 . . . 7 . . 2 2 . . . . . Demolisher 1 | . . . 1 . . . . . . . . . . . . Hunter 1 | . . . . . . . . . . 1 . . . . . Programmer 3 | . . . . . . . . . . 1 1 1 . . . Behemoth 1 | . . . . . . . . . . . . 1 . . . Thief 1 | . . . . . . . . . . . . . . . 1 Assembled 4 | . . . 4 . . . . . . . . . . . . Best Kill Streak 10 | . 4 2 4 . 5 4 1 . 2 10 4 4 . . 1 Combat Bots Only 10 | . 2 2 4 . 4 4 . . 2 10 3 4 . . 1 Max Kills in Single Turn 4 | . 1 1 4 . 1 3 1 . 1 3 1 2 . . 1 Gunslinging . | . . . . . . . . . . . . . . . . Exploded 4 | . . . 4 . 1 2 . . . 3 . 2 . . . Melee 1 | . . . . . . 1 . . 1 . . . . . 1 Uniques/NPCs Destroyed . | . . . . . . . . . . . . . . . . Combat | -11 -10 -9 -9 -9 -8 -8 -7 -7 -7 -7 -7 -6 -6 -6 -6 -------- Run | Scr Mat Mat Min Exi Min Mat Fac Was Fac Gar Fac Fac Was Fac Low Damage Taken 8256 | . 598 250 444 . 155 1242 . 2 123 1575 541 750 577 568 1431 Core 1289 | . 62 14 36 . 8 88 . . 18 103 90 14 123 350 383 Absorbed by Shields . | . . . . . . . . . . . . . . . . Reduced by Siege Mode 13 | . . . . . . . . . . . . 13 . . . Core Remaining (%) 82 | 100 75 . . . 85 84 . . . . 69 . . . . Volleys Fired 232 | . 40 24 23 . 10 68 . 1 2 27 21 10 . 4 2 Largest 4 | . 2 4 4 . 4 4 . 1 3 4 3 4 . 2 1 Hottest 206 | . 60 185 168 . 167 206 . . 115 151 84 149 . 105 25 Shots Fired 635 | . 79 80 48 . 23 213 . 1 6 89 57 34 . 4 1 Gun 519 | . 79 80 38 . 13 147 . . 6 77 57 19 . 2 1 Cannon 78 | . . . . . 5 61 . . . . . 10 . 2 . Launcher 37 | . . . 10 . 5 5 . . . 12 . 5 . . . Special 1 | . . . . . . . . 1 . . . . . . . Kinetic 413 | . 63 18 14 . 5 149 . . 4 72 57 28 . 2 1 Thermal 162 | . 16 62 24 . . 50 . . 2 5 . 1 . 2 . Explosive 19 | . . . 10 . 5 . . . . 3 . 1 . . . Electromagnetic 40 | . . . . . 13 14 . . . 9 . 4 . . . Robot Hit Streak 18 | . 13 10 8 . 8 16 . 3 5 18 15 8 . 2 1 Robot Miss Streak 8 | . 2 3 4 . 3 8 . . 2 5 3 3 . . 1 Penetration Max . | . . . . . . . . . . . . . . . . Secondary Targets 4 | . 1 . 1 . . . . . . 1 1 . . . . Max Gunslinging Chain 1 | . 1 . 1 . . . . . . 1 1 . . . . Shots Hit Robots 464 | . 62 51 31 . 11 132 2 1 11 77 44 34 . 2 6 Core Hits 289 | . 24 22 25 . 15 51 1 . 4 59 37 30 . . 21 Critical Hits 12 | . . . . . . 10 . . 1 1 . . . . . Critical Kills 3 | . . . . . . 3 . . . . . . . . . Critical Parts Destroyed 8 | . . . . . . 6 . . 1 1 . . . . . Melee Attacks 97 | . . . . . . 10 2 . 16 22 26 15 1 . 5 Impact 12 | . . . . . . 10 2 . . . . . . . . Slashing 85 | . . . . . . . . . 16 22 26 15 1 . 5 Piercing . | . . . . . . . . . . . . . . . . Sneak Attacks 12 | . . . . . . 2 2 . 1 . 2 5 . . . Combat Hostiles . | . . . . . . . . . . . . . . . . Follow-up Attacks . | . . . . . . . . . . . . . . . . Damage Inflicted 11588 | . 651 524 778 . 475 2599 129 . 444 2855 1146 1394 . 144 449 Guns 5584 | . 643 521 196 . 140 1623 . . 73 1021 917 423 . . 27 Cannons 784 | . . . . . . 431 . . . . . 209 . 144 . Explosions 2415 | . . . 582 . 335 247 . . . 1018 . 233 . . . Melee 2710 | . . . . . . 288 129 . 371 816 229 529 . . 348 Ramming 95 | . 8 3 . . . 10 . . . . . . . . 74 Kinetic 4546 | . 524 88 56 . . 1336 . . 56 932 917 610 . . 27 Thermal 1713 | . 119 433 140 . . 698 . . 17 140 . 22 . 144 . Explosive 1511 | . . . 582 . 335 45 . . . 433 . 116 . . . Electromagnetic 1013 | . . . . . 140 222 . . . 534 . 117 . . . Impact 417 | . . . . . . 288 129 . . . . . . . . Slashing 2293 | . . . . . . . . . 371 816 229 529 . . 348 Piercing . | . . . . . . . . . . . . . . . . Highest Corruption 13 | . . . . . . . . . . . 1 1 13 13 13 Average Corruption 7 | . . . . . . . . . . . 1 1 8 13 12 Corruption Purged 1 | . . . . . . . . . . . . . . . 1 Effects 70 | . . . . . . . . . . . 3 2 8 28 29 Message Errors 18 | . . . . . . . . . . . 1 1 . 5 11 Matter Fused 16 | . . . . . . . . . . . . . 4 7 5 Heat Flow Errors 5 | . . . . . . . . . . . . . . 3 2 Energy Discharges 5 | . . . . . . . . . . . 1 1 . 1 2 Data Loss (minor) 6 | . . . . . . . . . . . 1 . 2 3 . Data Loss (major) 4 | . . . . . . . . . . . . . . 3 1 Misdirections 14 | . . . . . . . . . . . . . 2 5 7 Weapon Failures 2 | . . . . . . . . . . . . . . 1 1 Overload Shots 2 | . . . . . . . . . . . . . . 2 . Effects 1 | . . . . . . . . . . . . . . 1 . Heat Surge 1 | . . . . . . . . . . . . . . 1 . Overflow Damage 581 | . . . . . 10 41 . . . 133 93 185 . 12 107 Projectiles 23 | . . . . . . 11 . . . . . . . 12 . Explosions 67 | . . . . . 10 29 . . . 28 . . . . . Melee 491 | . . . . . . 1 . . . 105 93 185 . . 107 Knockbacks 2 | . . . . . . 2 . . . . . . . . . Impact 1 | . . . . . . 1 . . . . . . . . . Kinetic 1 | . . . . . . 1 . . . . . . . . . Secondary . | . . . . . . . . . . . . . . . . Self-Inflicted Damage 377 | . . 1 36 . 80 61 . . . 144 . 26 . . 29 Shots 18 | . . . 1 . 3 4 . . . 8 . 2 . . . Rammed 62 | . . 1 . . . 2 . . . . . . . 1 58 Targets Rammed 64 | . 2 1 . . . 2 . . . . . . . 1 58 Kicked 2 | . 2 . . . . . . . . . . . . . . Crushed . | . . . . . . . . . . . . . . . . Highest Temperature 242 | . 135 127 36 . 60 242 . . 26 108 7 63 . 227 139 Average Temperature 54 | . 61 24 21 . 25 68 . . 19 30 7 26 . 90 79 Received Heat Transfer 2058 | . 369 111 . . . 540 . . 45 444 207 156 . 24 162 Siege Activations 1 | . . . . . . . . . . . . 1 . . . Total Turns 4 | . . . . . . . . . . . . 4 . . . Longest Duration 4 | . . . . . . . . . . . . 4 . . . Robots Corrupted 1 | . . . . . . . . . . 1 . . . . . Combat Hostiles 1 | . . . . . . . . . . 1 . . . . . Parts Fried 1 | . . . . . . . . . . 1 . . . . . Impact Corruptions 1 | . . . . . . 1 . . . . . . . . . Robots Melted . | . . . . . . . . . . . . . . . . Combat Hostiles . | . . . . . . . . . . . . . . . . Parts Melted 3 | . . 1 . . . 1 . . 1 . . . . . . Heat Transferred 3510 | . 275 987 323 . . 1456 . . 37 235 . 37 . 160 . Parts Sabotaged . | . . . . . . . . . . . . . . . . Parts Stolen 1 | . . . . . . . . . . . . . . . 1 Parts Stripped . | . . . . . . . . . . . . . . . . Power Chain Reactions 3 | . . . . . . 2 . . . 1 . . . . . Missiles Intercepted . | . . . . . . . . . . . . . . . . Alert | -11 -10 -9 -9 -9 -8 -8 -7 -7 -7 -7 -7 -6 -6 -6 -6 ------- Run | Scr Mat Mat Min Exi Min Mat Fac Was Fac Gar Fac Fac Was Fac Low Peak Influence 1355 | . 187 207 240 . 240 387 180 94 395 1355 745 307 117 112 . Initial 711 | . . 28 14 . . 93 175 63 65 276 711 294 57 67 . Average 293 | . 48 74 97 . 113 146 178 82 174 910 650 222 84 69 . Maximum Alert Level 4 | . . 1 1 . 1 1 . . 1 4 3 1 . . . Low Security (%) 57 | 100 100 94 79 . 73 76 100 100 55 . . 40 100 100 . Level 1 18 | . . 5 20 . 26 23 . . 44 7 . 59 . . . Level 2 8 | . . . . . . . . . . 15 58 . . . . Level 3 9 | . . . . . . . . . . 31 41 . . . . Level 4 6 | . . . . . . . . . . 45 . . . . . Level 5 . | . . . . . . . . . . . . . . . . High Security . | . . . . . . . . . . . . . . . . Max Security . | . . . . . . . . . . . . . . . . Squads Dispatched 26 | . 3 1 . . . 9 . . 4 . 3 4 . 2 . Investigation 5 | . . 1 . . . 2 . . . . . 1 . 1 . Extermination 3 | . . . . . . . . . . . 1 2 . . . Reinforcement 11 | . 3 . . . . 2 . . 2 . 2 1 . 1 . Assault . | . . . . . . . . . . . . . . . . Garrison 7 | . . . . . . 5 . . 2 . . . . . . Intercept . | . . . . . . . . . . . . . . . . Construction Impeded 3 | . . . . . . 1 . . 1 . 1 . . . . Haulers Reinforced 2 | . . . . . . . . . 1 . 1 . . . . Stealth | -11 -10 -9 -9 -9 -8 -8 -7 -7 -7 -7 -7 -6 -6 -6 -6 --------- Run | Scr Mat Mat Min Exi Min Mat Fac Was Fac Gar Fac Fac Was Fac Low Distress Signals 4 | . 2 1 . . . . . . 1 . . . . . . Communications Jammed . | . . . . . . . . . . . . . . . . Distress Signals . | . . . . . . . . . . . . . . . . Times Spotted 179 | . 22 9 16 . 7 35 . 5 9 33 10 10 6 4 13 Peak Tracking Total 14 | . 6 3 4 . 4 5 . 2 4 14 3 4 6 3 6 Tactical Retreats 11 | . 1 . . . . 2 . . . 3 . . . . 5 Traps | -11 -10 -9 -9 -9 -8 -8 -7 -7 -7 -7 -7 -6 -6 -6 -6 ------- Run | Scr Mat Mat Min Exi Min Mat Fac Was Fac Gar Fac Fac Was Fac Low Traps Triggered 8 | . . . . . . . 1 . . 2 3 2 . . . Indirectly 2 | . . . . . . . . . . 2 . . . . . Trap Hack Attempts . | . . . . . . . . . . . . . . . . Triggered . | . . . . . . . . . . . . . . . . Disarmed . | . . . . . . . . . . . . . . . . Reprogrammed . | . . . . . . . . . . . . . . . . Reused . | . . . . . . . . . . . . . . . . Traps Extracted . | . . . . . . . . . . . . . . . . Installed . | . . . . . . . . . . . . . . . . Triggered 6 | . . . . . . . . . . 1 . . . . 5 Exploded 1 | . . . . . . . . . . 1 . . . . . Machines | -11 -10 -9 -9 -9 -8 -8 -7 -7 -7 -7 -7 -6 -6 -6 -6 ---------- Run | Scr Mat Mat Min Exi Min Mat Fac Was Fac Gar Fac Fac Was Fac Low Machines Disabled 30 | . . . 4 . 2 7 . . 5 5 2 5 . . . Max in Single Turn 4 | . . . 2 . 2 2 . . . 1 1 4 . . . Garrison Access 2 | . . . . . . . . . . . 2 . . . . Garrison Relay 4 | . . . . . . . . . . 4 . . . . . Machines Sabotaged . | . . . . . . . . . . . . . . . . Garrisons Compromised . | . . . . . . . . . . . . . . . . Overloaded Fab Kills . | . . . . . . . . . . . . . . . . Fab Network Shutdowns . | . . . . . . . . . . . . . . . . Hacking | -11 -10 -9 -9 -9 -8 -8 -7 -7 -7 -7 -7 -6 -6 -6 -6 --------- Run | Scr Mat Mat Min Exi Min Mat Fac Was Fac Gar Fac Fac Was Fac Low Machines Accessed 24 | . 3 2 1 1 . 7 . . 2 . 4 3 . 1 . Terminals 8 | . 3 1 . . . 3 . . . . 1 . . . . Fabricators 3 | . . . . . . . . . . . 1 2 . . . Repair Stations 4 | . . . . . . 2 . . 1 . . 1 . . . Recycling Units 2 | . . 1 . . . . . . . . . . . 1 . Scanalyzers 1 | . . . . . . 1 . . . . . . . . . Garrison Access 4 | . . . . . . 1 . . 1 . 2 . . . . Total Hacks 51 | . 7 4 1 1 . 18 . . 4 . 6 9 . 1 . Successful 33 | . 4 3 1 1 . 12 . . 3 . 5 3 . 1 . Failed 18 | . 3 1 . . . 6 . . 1 . 1 6 . . . Catastrophic 2 | . . . . . . 1 . . . . . 1 . . . Database Lockouts . | . . . . . . . . . . . . . . . . Manual 4 | . . 1 . 1 . 1 . . . . . . . 1 . Terminals 22 | . 7 3 . . . 9 . . . . 3 . . . . Fabricators 8 | . . . . . . . . . . . 1 7 . . . Repair Stations 8 | . . . . . . 4 . . 2 . . 2 . . . Recycling Units 2 | . . 1 . . . . . . . . . . . 1 . Scanalyzers 3 | . . . . . . 3 . . . . . . . . . Garrison Access 6 | . . . . . . 2 . . 2 . 2 . . . . Terminal Hacks 15 | . 4 2 1 1 . 5 . . . . 2 . . . . Robot Analysis 1 | . 1 . . . . . . . . . . . . . . Open Door 1 | . . . 1 . . . . . . . . . . . . Emergency Access Points 2 | . . . . . . 1 . . . . 1 . . . . Alert Level 2 | . 1 1 . . . . . . . . . . . . . Unreport Threat 1 | . . . . . . 1 . . . . . . . . . Locate Traps 1 | . . . . . . 1 . . . . . . . . . Hauler Manifests 1 | . . 1 . . . . . . . . . . . . . Zone Layout 5 | . 2 . . . . 2 . . . . 1 . . . . EX-Prototype ID Bank 1 | . . . . 1 . . . . . . . . . . . Fabricator Hacks 3 | . . . . . . . . . . . 1 2 . . . Build 3 | . . . . . . . . . . . 1 2 . . . Repair Station Hacks 7 | . . . . . . 4 . . 2 . . 1 . . . Scan Component 4 | . . . . . . 2 . . 1 . . 1 . . . Repair 3 | . . . . . . 2 . . 1 . . . . . . Recycling Unit Hacks . | . . . . . . . . . . . . . . . . Scanalyzer 3 | . . . . . . 3 . . . . . . . . . Insert Component 2 | . . . . . . 2 . . . . . . . . . Analyze 1 | . . . . . . 1 . . . . . . . . . Garrison Access Hacks 3 | . . . . . . . . . 1 . 2 . . . . Unlock Access 1 | . . . . . . . . . 1 . . . . . . Seal Access 2 | . . . . . . . . . . . 2 . . . . Unauthorized Hacks 2 | . . 1 . . . . . . . . . . . 1 . Terminals . | . . . . . . . . . . . . . . . . Fabricators . | . . . . . . . . . . . . . . . . Repair Stations . | . . . . . . . . . . . . . . . . Recycling Units 2 | . . 1 . . . . . . . . . . . 1 . Tunnel 2 | . . 1 . . . . . . . . . . . 1 . Scanalyzers . | . . . . . . . . . . . . . . . . Garrison Access . | . . . . . . . . . . . . . . . . Data Cores Recovered . | . . . . . . . . . . . . . . . . Used . | . . . . . . . . . . . . . . . . Hacking Detections 12 | . 1 . . . . 6 . . 1 . 1 3 . . . Full Trace Events 3 | . . . . . . 2 . . . . . 1 . . . Feedback Events . | . . . . . . . . . . . . . . . . Feedback Blocked . | . . . . . . . . . . . . . . . . Robot Schematics Acquired . | . . . . . . . . . . . . . . . . Robots Built 1 | . . . . . . . . . . . . 1 . . . Matter 153 | . . . . . . . . . . . . 153 . . . Time 81 | . . . . . . . . . . . . 81 . . . Total Robot Build Rating 1 | . . . . . . . . . . . . 1 . . . Part Schematics Acquired 1 | . . . . . . 1 . . . . . . . . . Parts Built 4 | . . . . . . . . . . . 2 2 . . . Matter 424 | . . . . . . . . . . . 168 256 . . . Time 212 | . . . . . . . . . . . 84 128 . . . Total Part Build Rating 24 | . . . . . . . . . . . 8 16 . . . Parts Repaired 3 | . . . . . . 2 . . 1 . . . . . . Time 108 | . . . . . . 70 . . 38 . . . . . . Parts Recycled . | . . . . . . . . . . . . . . . . Recycled Matter . | . . . . . . . . . . . . . . . . Retrieved Matter . | . . . . . . . . . . . . . . . . Retrieved Components . | . . . . . . . . . . . . . . . . Parts Scanalyzed 1 | . . . . . . 1 . . . . . . . . . Part Schematics Acquired 1 | . . . . . . 1 . . . . . . . . . Parts Damaged . | . . . . . . . . . . . . . . . . Bothacking | -11 -10 -9 -9 -9 -8 -8 -7 -7 -7 -7 -7 -6 -6 -6 -6 ------------ Run | Scr Mat Mat Min Exi Min Mat Fac Was Fac Gar Fac Fac Was Fac Low Used RIF Installer 1 | . . . . . . . . . . 1 . . . . . Robots Hacked . | . . . . . . . . . . . . . . . . Non-combat . | . . . . . . . . . . . . . . . . Combat . | . . . . . . . . . . . . . . . . Robot Hacks Applied . | . . . . . . . . . . . . . . . . Relay Couplers Released 16 | . . . . . . . . . . 16 . . . . . Machine Destruction 16 | . . . . . . . . . . 16 . . . . . Robots Rewired 1 | . . . . . . . . . . 1 . . . . . Allies Hacked . | . . . . . . . . . . . . . . . . Hacks Repelled . | . . . . . . . . . . . . . . . . Allies | -11 -10 -9 -9 -9 -8 -8 -7 -7 -7 -7 -7 -6 -6 -6 -6 -------- Run | Scr Mat Mat Min Exi Min Mat Fac Was Fac Gar Fac Fac Was Fac Low Total Allies 21 | . . . . . . . . 19 . 1 . 1 . . . Largest Group 19 | . . . . . . . . 19 11 8 1 1 1 . . Highest-Rated Group 585 | . . . . . . . . 585 339 248 33 9 9 . . Highest-Rated Ally 129 | . . . . . . . . 129 35 35 33 9 9 . . Total Orders 10 | . . . . . . . . 2 . 1 . . 6 1 . FOLLOW 1 | . . . . . . . . 1 . . . . . . . GUARD 1 | . . . . . . . . 1 . . . . . . . AID 1 | . . . . . . . . . . 1 . . . . . TUNNEL 6 | . . . . . . . . . . . . . 6 . . EXPLORE 1 | . . . . . . . . . . . . . . 1 . Ally Attacks 156 | . . . . . . . . 71 43 42 . . . . . Total Damage 6570 | . . . . . . . . 4183 1553 834 . . . . . Kills 31 | . . . . . . . . 12 11 8 . . . . . Allies Corrupted 1 | . . . . . . . . . . 1 . . . . . Allies Melted . | . . . . . . . . . . . . . . . . Field Lobotomies 1 | . . . . . . . . 1 . . . . . . . Intel | -11 -10 -9 -9 -9 -8 -8 -7 -7 -7 -7 -7 -6 -6 -6 -6 ------- Run | Scr Mat Mat Min Exi Min Mat Fac Was Fac Gar Fac Fac Was Fac Low Robot Analysis Total 1 | . 1 . . . . . . . . . . . . . . Derelict Logs Recovered 1 | . . . . . . . . . . . . . . . 1 Drone Launches 2 | . . . . . . . . . . . . . . 2 . Drone Recoveries 1 | . . . . . . . . . . . . . . 1 . Exploration | -11 -10 -9 -9 -9 -8 -8 -7 -7 -7 -7 -7 -6 -6 -6 -6 ------------- Run | Scr Mat Mat Min Exi Min Mat Fac Was Fac Gar Fac Fac Was Fac Low Turns Passed 9857 | 50 731 541 684 421 371 1798 115 222 479 1189 1038 1089 190 430 509 Spaces Moved 5491 | 31 373 269 401 277 216 868 72 140 261 613 524 541 133 237 535 Core 712 | 2 . . . . . . . . . . . . 58 216 436 Treads 2914 | . . . . . . 650 72 140 261 613 524 541 75 . 38 Legs 1593 | 29 373 269 401 277 216 28 . . . . . . . . . Wheels 190 | . . . . . . 190 . . . . . . . . . Hover 21 | . . . . . . . . . . . . . . 21 . Flight 61 | . . . . . . . . . . . . . . . 61 Fastest Speed 34 | 50 120 150 150 150 150 100 145 150 150 150 160 160 50 50 34 Average Speed 144 | 122 146 150 150 150 150 150 148 150 150 157 160 169 121 169 58 Slowest Speed 350 | 150 150 150 150 150 150 200 150 150 150 180 200 210 200 350 250 Overloaded Moves . | . . . . . . . . . . . . . . . . Propulsion Burnouts . | . . . . . . . . . . . . . . . . Robots Hopped . | . . . . . . . . . . . . . . . . Cave-ins Triggered 2 | . . . . . . . . . . . . . 2 . . Time Travels 1 | . . . . 1 . . . . . . . . . . . Exploration Rate (%) 40 | 3 53 19 67 60 50 59 3 78 7 60 15 12 80 10 76 Regions Visited 15 Branch Regions 4 Pre-discovered Areas 4 | . . 1 1 . . . . . . . . . . 1 1 Known Exits Taken 4 | . . . . . . 1 . . 1 . 1 . . 1 . Unknown Exits Taken 6 | 1 1 1 1 1 1 . . . . . . . . . . Scrap Searched 6 | . . . 2 . 1 . . . . . . . . . 3 Spaces Dug 46 | . . . . . . 3 . . 9 2 23 8 1 . . Terrain Destroyed 302 | . . . 69 . 68 93 . . 9 17 23 22 1 . . Melee 46 | . . . . . . 3 . . 9 2 23 8 1 . . Projectile 33 | . . . . . 5 27 . . . 1 . . . . . AOE 223 | . . . 69 . 63 63 . . . 14 . 14 . . . Terrain Rammed . | . . . . . . . . . . . . . . . . Walls Destroyed . | . . . . . . . . . . . . . . . . Machines Disabled . | . . . . . . . . . . . . . . . . Actions | -11 -10 -9 -9 -9 -8 -8 -7 -7 -7 -7 -7 -6 -6 -6 -6 --------- Run | Scr Mat Mat Min Exi Min Mat Fac Was Fac Gar Fac Fac Was Fac Low Total 6692 | 40 480 356 446 283 247 1210 77 149 314 733 633 673 161 256 634 Wait 522 | 1 47 38 12 . 9 202 . . 29 35 31 71 27 8 12 Move 5475 | 30 372 268 400 276 215 867 72 139 260 611 523 541 130 236 535 Hop . | . . . . . . . . . . . . . . . . Pick Up 43 | 2 3 6 3 2 1 11 1 1 1 4 3 5 . . . Fast Attach 88 | 5 4 4 3 1 2 17 . 1 1 8 10 8 1 7 16 Attach 25 | 1 3 2 2 . 1 3 2 . . 4 1 4 . . 2 Detach 13 | . 1 1 1 . 1 2 . 1 1 2 1 1 . . 1 Swap 53 | 1 6 5 . 1 4 5 . 4 2 13 6 6 . . . Drop 75 | . 2 7 2 3 4 23 . 2 2 4 11 12 . . 3 Fire 232 | . 40 24 23 . 10 68 . 1 2 27 21 10 . 4 2 Melee 97 | . . . . . . 10 2 . 16 22 26 15 1 . 5 Ram 59 | . . . . . . . . . . . . . . 1 58 Kick 3 | . 2 1 . . . . . . . . . . . . . Crush 2 | . . . . . . 2 . . . . . . . . . Escape Stasis 2 | . . . . . . . . . . . . . 2 . . Rewire 3 | . . . . . . . . . . 3 . . . . . Trap . | . . . . . . . . . . . . . . . . Miscellaneous . | . . . . . . . . . . . . . . . . Route ------- -11/Scrapyard -10/Materials (discovered 2 exits: *Mat / [*Min]) -9/Materials -9/Mines -9/Exiles -8/Mines -8/Materials (discovered 2 exits: *Fac / *Sto) -7/Factory -7/Waste -7/Factory -7/Garrison (discovered 2 exits: *Fac x2) -7/Factory -6/Factory -6/Waste -6/Factory -6/Lower Caves History --------- Turn | Location | Event 25 | -11/Scrapyard | Discovered new exit (range 15) 51 | -11/Scrapyard | Entered Materials 210 | -10/Materials | Discovered new exit (range 15) 341 | -10/Materials | Build established: Mutant 445 | -10/Materials | Lost 3 parts (1p1n1u) 477 | -10/Materials | Discovered new exit (range 13) 782 | -10/Materials | Entered another Materials area 782 | -9/Materials | Evolved 2 slots: Weapon x2 1163 | -9/Materials | Discovered new exit (range 12) 1323 | -9/Materials | Entered Mines 1324 | -9/Mines | Assembled infested the area 1344 | -9/Mines | Build established: Scavenger-Gunner 1651 | -9/Mines | Met a Derelict who couldn't figure out how to use a Trap Extractor 1706 | -9/Mines | A weapon hastily lodged in a ceiling crevice suddenly fell to the ground 1999 | -9/Mines | Deemed a non-threat by the Exiles lab entrance 2001 | -9/Mines | Discovered new exit (range 5) 2007 | -9/Mines | Entered Exiles 2045 | -9/Exiles | Met 8R-AWN 2069 | -9/Exiles | Met EX-HEX 2083 | -9/Exiles | Build established: Scavenger-Mutant 2118 | -9/Exiles | Met EX-BIN 2214 | -9/Exiles | Aligned with FarCom system 2216 | -9/Exiles | Given EX-Vault access code 2250 | -9/Exiles | Opened EX-Vault 2259 | -9/Exiles | Found Prototype Device 2259 | -9/Exiles | Identified Chronowheel 2259 | -9/Exiles | Activated Chronowheel 2259 | -9/Exiles | Spacetime reconverged on an earlier point 2275 | -9/Exiles | Found Field Lobotomy Kit 2314 | -9/Exiles | Warned to stay clear of 0b10 Research branches 2356 | -9/Exiles | Met EX-DEC 2411 | -9/Exiles | Discovered new exit (range 14) 2428 | -9/Exiles | Left Exiles lab with Field Lobotomy Kit 2428 | -9/Exiles | Entered Mines 2784 | -8/Mines | Discovered new exit (range 11) 2799 | -8/Mines | Entered Materials 2799 | -8/Materials | Evolved 2 slots: Utility x2 3124 | -8/Materials | Build established: Skirmisher 3271 | -8/Materials | Repaired Cooling System 3418 | -8/Materials | Discovered new exit (range 15) 3472 | -8/Materials | Identified exit to Storage 4175 | -8/Materials | Garrison activated, responded to threat 4338 | -8/Materials | Repaired Minigun 4490 | -8/Materials | Garrison activated, responded to threat 4590 | -8/Materials | Discovered new exit (range 5) 4594 | -8/Materials | Identified exit to Factory 4597 | -8/Materials | Entered Factory 4597 | -7/Factory | Evolved 2 slots: Propulsion x1, Utility x1 4712 | -7/Factory | Sucked down chute 4712 | -7/Factory | Entered Waste 4729 | -7/Waste | Spotted C-40 Crusher 4751 | -7/Waste | Spotted C-40 Crusher 4754 | -7/Waste | Assimilated C-40 Crusher with FLK Orb 4763 | -7/Waste | Warlord forces began an assault 4773 | -7/Waste | Spotted C-40 Crusher 4775 | -7/Waste | Allies destroyed C-40 Crusher 4784 | -7/Waste | Allies destroyed Crusher 4a 4787 | -7/Waste | Allies destroyed C-40 Crusher 4787 | -7/Waste | Spotted C-40 Crusher 4794 | -7/Waste | Allies destroyed C-40 Crusher 4817 | -7/Waste | Spotted C-40 Crusher 4817 | -7/Waste | Spotted C-40 Crusher 4820 | -7/Waste | Allies destroyed C-40 Crusher 4823 | -7/Waste | Allies destroyed C-40 Crusher 4862 | -7/Waste | Found Prototype Processor 4912 | -7/Waste | Discovered new exit (range 12) 4930 | -7/Waste | Identified exit to Factory 4934 | -7/Waste | Entered Factory 4934 | -7/Factory | Accompanied by 11 allies 5252 | -7/Factory | Build established: Tank 5316 | -7/Factory | Repaired Minigun 5392 | -7/Factory | Identified exit to Garrison 5413 | -7/Factory | Entered Garrison 5413 | -7/Garrison | Accompanied by 8 allies 5450 | -7/Garrison | Triggered checkpoint 5525 | -7/Garrison | Garrison Relay disabled 5650 | -7/Garrison | Triggered checkpoint 5655 | -7/Garrison | Triggered checkpoint 5656 | -7/Garrison | Triggered checkpoint 5704 | -7/Garrison | Destroyed 10 combat bots 5716 | -7/Garrison | Lost 8 parts (1p3n1u3w) 5796 | -7/Garrison | Triggered checkpoint 5921 | -7/Garrison | Garrison Relay disabled 5940 | -7/Garrison | Build established: Scavenger-Tank 5986 | -7/Garrison | Triggered checkpoint 6016 | -7/Garrison | Triggered checkpoint 6255 | -7/Garrison | Discovered new exit (range 10) 6267 | -7/Garrison | Identified exit to Factory 6298 | -7/Garrison | Spotted B-75 Beast 6298 | -7/Garrison | Spotted B-75 Beast 6330 | -7/Garrison | Attempted to access garrison exit controls, blocked by remote lockdown 6468 | -7/Garrison | Triggered checkpoint 6510 | -7/Garrison | Garrison Relay disabled 6576 | -7/Garrison | Discovered exit to Factory (range 8) 6596 | -7/Garrison | Installed Relay Interface Framework 6602 | -7/Garrison | Entered Factory 6602 | -7/Factory | Accompanied by 1 ally 6736 | -7/Factory | Fabricated Lyr. Light Armor Plating (x2) 7018 | -7/Factory | P-60 Hacker assimilated allied WL-WFS(m) 7393 | -7/Factory | Found Prototype Launcher 7393 | -7/Factory | Identified Rocket Array 7617 | -7/Factory | Discovered new exit (range 15) 7638 | -7/Factory | Identified exit to Factory 7640 | -7/Factory | Entered another Factory area 7640 | -6/Factory | Evolved 2 slots: Utility x2 7705 | -6/Factory | Discovered new exit (range 11) 7722 | -6/Factory | Identified exit to Lower Caves 8058 | -6/Factory | Fabricated Arm. Heavy Treads (x2) 8170 | -6/Factory | Spotted B-75 Beast 8208 | -6/Factory | Destroyed B-75 Beast 8238 | -6/Factory | Lost 3 parts (1u2w) 8541 | -6/Factory | Build established: Gunner 8569 | -6/Factory | Fabricated T-07 Excavator? 8729 | -6/Factory | Sucked down chute 8729 | -6/Factory | Entered Waste 8743 | -6/Waste | Spotted C-40 Crusher 8745 | -6/Waste | 1 allies followed down the chute 8796 | -6/Waste | Crushed by falling debris 8800 | -6/Waste | Crushed by falling debris 8801 | -6/Waste | System corruption reached 10% 8803 | -6/Waste | Spotted C-40 Crusher 8831 | -6/Waste | Lost 3 parts (1p1u1w) 8834 | -6/Waste | Crushed by Compactor (1 part destroyed, 1 dropped) 8844 | -6/Waste | Spotted C-40 Crusher 8886 | -6/Waste | Released all parts (8) 8896 | -6/Waste | Spotted C-40 Crusher 8896 | -6/Waste | Spotted C-40 Crusher 8899 | -6/Waste | Spotted C-40 Crusher 8910 | -6/Waste | Discovered new exit (range 10) 8919 | -6/Waste | Entered Factory 9201 | -6/Factory | Build established: Mutant 9251 | -6/Factory | Released all parts (4) 9302 | -6/Factory | Released all parts (1) 9309 | -6/Factory | Core integrity fell below 50% 9338 | -6/Factory | Discovered exit to Lower Caves (range 14) 9345 | -6/Factory | Released all parts (3) 9349 | -6/Factory | Entered Lower Caves 9393 | -6/Lower Caves | Cesium-ion Thruster stolen by Master Thief 9633 | -6/Lower Caves | Attracted the attention of an 0b10 checkpoint 9650 | -6/Lower Caves | Core integrity fell below 20% 9663 | -6/Lower Caves | Released all parts (6) 9682 | -6/Lower Caves | Lost 4 parts (1p1u2w) 9685 | -6/Lower Caves | Learned location of Zion (-6) 9694 | -6/Lower Caves | Spotted B-75 Beast 9858 | -6/Lower Caves | Destroyed by Y-64 Sentinel with Wave Gun Last Messages --------------- World map updated: -6/Zion. 09688_ System corrupted: Energy discharge (-25). 09707_ T1EMMN2/VQSDX/6DGI DUPTM8A LRUU 7 09707_ Searching scrap... 09707_ Found Mak. Hammer. 09707_ Found Mak. System Shield. 09707_ Found System Guard. 09707_ Found 31 Matter. 09708_ Acquired 10 matter. 09708_ Acquired Mak. Hammer. 09710_ Acquired 10 matter. 09711_ Acquired Mak. System Shield. 09713_ Acquired System Guard. 09731_ System corrupted: Matter fused (-10). 09751_ System corrupted: Energy discharge (-31). 09771_ |DVUULCRV>TVJBYT=CVUJIJKF% 09791_ System corrupted: Matter fused (-9). 09806_ KJW6U&TSWRFAOGCWFFMB UMTBVY